bitfinex-derivatives/quotes_SOLF0:USTF0_20250523
["timestamp","ask_amount","ask_price","bid_price","bid_amount"]
[1747980378983,5.5007,181.8,181.78,0.03692204]
[1747980380684,5.53678305,181.81,181.78,5.53792204]
[1747980382187,5.5005,181.8,181.78,5.53792204]
[1747980382386,5.5005,181.8,181.78,0.03692204]
[1747980383279,5.5005,181.8,181.78,5.53792204]
[1747980384489,5.53678305,181.81,181.78,5.53792204]
[1747980384884,0.03658305,181.81,181.78,5.53792204]
[1747980385188,5.5005,181.8,181.78,0.03692204]
[1747980385689,5.5008,181.79,181.78,0.03692204]
[1747980385886,5.5008,181.79,181.78,2.204e-05]
[1747980386591,1.9703,181.8,181.78,2.204e-05]
[1747980386779,0.03658305,181.81,181.78,2.204e-05]
[1747980387283,122.58254963,181.87,181.8,5.50798078]
[1747980387789,122.58254963,181.87,181.79,1.9561]
[1747980388383,0.0398524,181.85,181.81,0.03611803]
[1747980388781,5.4999,181.82,181.81,0.03611803]
[1747980389387,122.9999,181.82,181.81,0.03611803]
[1747980390180,122.9999,181.82,181.81,1.803e-05]
[1747980390386,117.5,181.82,181.76,4.20343703]
[1747980391390,0.04134567,181.81,181.77,0.04013073]
[1747980391586,5.54174567,181.81,181.78,5.501]
[1747980391789,0.04134567,181.81,181.77,0.04013073]
[1747980392789,5.54164567,181.81,181.78,5.501]
[1747980392994,0.04134567,181.81,181.77,0.04013073]
[1747980393887,0.04134567,181.81,181.77,3.90273073]
[1747980394395,0.04134567,181.81,181.8,5.5005]
[1747980395283,0.04134567,181.81,181.79,5.5007]
[1747980395688,0.04134567,181.81,181.78,4.20343703]
[1747980396498,0.04134567,181.81,181.79,5.5008]
[1747980396698,0.04134567,181.81,181.78,4.20343703]
[1747980396998,0.04134567,181.81,181.8,5.5005]
[1747980398399,0.04134567,181.81,181.79,5.5007]
[1747980399298,0.04134567,181.81,181.78,4.20343703]
[1747980399899,0.04134567,181.81,181.79,5.5006]
[1747980402501,5.5005,181.8,181.77,13.60746776]
[1747980402695,5.5005,181.8,181.77,11.72746776]
[1747980403103,5.54154567,181.81,181.78,5.501]
[1747980403599,0.04134567,181.81,181.77,2.02273073]
[1747980405803,5.54154567,181.81,181.78,5.5009]
[1747980406505,0.04134567,181.81,181.78,5.5009]
[1747980406709,0.04134567,181.81,181.77,2.02273073]
[1747980407307,0.04134567,181.81,181.78,5.501]
[1747980407510,0.04134567,181.81,181.77,2.02273073]
[1747980407808,5.54154567,181.81,181.77,2.02273073]
[1747980408003,0.04134567,181.81,181.78,5.5008]
[1747980408408,5.5007,181.8,181.77,0.04013073]
[1747980408709,0.04134567,181.81,181.77,0.04013073]
[1747980409515,5.5007,181.8,181.77,0.04013073]
[1747980410916,5.54164567,181.81,181.78,5.501]
[1747980411711,5.54164567,181.81,181.79,5.5008]
[1747980412014,0.04134567,181.81,181.77,0.04013073]
[1747980412313,0.04134567,181.81,181.79,5.5008]
[1747980413811,0.04134567,181.81,181.8,5.5005]
[1747980414112,0.04134567,181.81,181.77,0.04013073]
[1747980414413,0.04134567,181.81,181.79,5.5007]
[1747980415013,0.04134567,181.81,181.77,4.24356776]
[1747980415813,5.54154567,181.81,181.78,5.501]
[1747980416516,0.04134567,181.81,181.79,5.5007]
[1747980416815,0.04134567,181.81,181.77,4.24356776]
[1747980417012,0.04134567,181.81,181.79,5.5006]
[1747980419614,5.54154567,181.81,181.78,5.501]
[1747980420116,5.5005,181.8,181.78,5.501]
[1747980420412,0.04134567,181.81,181.78,5.501]
[1747980420607,0.04134567,181.81,181.79,5.5008]
[1747980420813,0.04134567,181.81,181.77,4.24356776]
[1747980422317,0.04134567,181.81,181.78,4.20343703]
[1747980423722,0.04134567,181.81,181.8,5.5005]
[1747980424015,117.5,181.85,181.78,9.71141781]
[1747980424219,10.58074963,181.88,181.85,5.4988]
[1747980424608,5.08254963,181.88,181.81,5.50798078]
[1747980424921,5.08254963,181.88,181.79,123.2843]
[1747980425106,0.04144549,181.85,181.82,0.03909085]
[1747980425310,119.44,181.84,181.82,0.03909085]
[1747980425709,5.4996,181.83,181.82,0.03909085]
[1747980434935,5.4996,181.83,181.82,9.085e-05]
[1747980436539,124.9396,181.83,181.82,9.085e-05]
[1747980437341,119.44,181.83,181.82,9.085e-05]
[1747980438244,124.9396,181.83,181.82,9.085e-05]
[1747980438945,119.44,181.83,181.82,9.085e-05]
[1747980440041,0.04144549,181.85,181.82,9.085e-05]
[1747980440243,119.48144549,181.85,181.82,9.085e-05]
[1747980441042,119.48144549,181.85,181.82,5.49979085]
[1747980441249,119.48144549,181.85,181.82,9.085e-05]
[1747980441652,0.04144549,181.85,181.82,9.085e-05]
[1747980441848,0.04144549,181.85,181.82,3.87459085]
[1747980442551,0.04144549,181.85,181.84,5.4993]
[1747980442951,0.04144549,181.85,181.82,3.87459085]
[1747980443248,0.04144549,181.85,181.82,9.085e-05]
[1747980443654,5.54064549,181.85,181.82,9.085e-05]
[1747980444652,5.54064549,181.85,181.82,5.49979085]
[1747980446652,0.04144549,181.85,181.83,5.4995]
[1747980452162,5.54044549,181.85,181.82,5.49979085]
[1747980452363,0.04144549,181.85,181.82,9.085e-05]
[1747980452867,0.04144549,181.85,181.83,5.4994]
[1747980454871,0.04144549,181.85,181.84,5.4993]
[1747980455064,119.44,181.89,181.82,9.085e-05]
[1747980455269,5.08254963,181.91,181.84,5.50798078]
[1747980455475,5.08254963,181.91,181.89,5.4976]
[1747980455662,5.08254963,181.91,181.85,1.8275]
[1747980456171,118.88,181.93,181.86,0.03522806]
[1747980456172,0.03586797,181.9,181.86,0.03522806]
[1747980456770,0.03586797,181.9,181.89,5.4977]
[1747980457377,118.88,181.93,181.92,5.4968]
[1747980457672,5.08254963,181.96,181.92,5.4968]
[1747980458067,5.08254963,181.96,181.88,104.48]
[1747980458271,5.08254963,181.96,181.9,5.50798078]
[1747980458467,0.03061909,181.95,181.91,0.03623355]
[1747980458668,5.4964,181.94,181.91,5.53323355]
[1747980459172,0.03061909,181.95,181.91,0.03623355]
[1747980459870,5.4968,181.92,181.91,0.03623355]
[1747980465478,5.4967,181.93,181.91,0.03623355]
[1747980466579,5.4968,181.92,181.91,0.03623355]
[1747980467074,124.3368,181.92,181.91,0.03623355]
[1747980471779,124.3368,181.92,181.91,3.355e-05]
[1747980480684,124.34798078,181.92,181.81,1.9269]
[1747980480886,5.50798078,181.89,181.79,4.20343703]
[1747980481593,1.9871,181.88,181.79,4.20343703]
[1747980481890,5.4996,181.83,181.82,0.03690757]
[1747980483290,0.04058531,181.86,181.82,0.03690757]
[1747980483495,117.64,181.85,181.82,0.03690757]
[1747980484784,0.04058531,181.86,181.82,0.03690757]
[1747980485691,5.4995,181.84,181.82,0.03690757]
[1747980485894,0.04058531,181.86,181.82,0.03690757]
[1747980486186,0.04058531,181.86,181.82,7.57e-06]
[1747980486385,5.4996,181.83,181.82,7.57e-06]
[1747980486593,5.50798078,181.85,181.76,4.20343703]
[1747980486792,117.66,181.84,181.76,4.20343703]
[1747980487399,5.5013,181.78,181.76,4.20343703]
[1747980487690,123.1613,181.78,181.76,4.20343703]
[1747980487994,0.04225763,181.82,181.76,4.20343703]
[1747980488194,117.66,181.81,181.76,4.20343703]
[1747980488695,117.66,181.81,181.75,0.03668876]
[1747980489196,5.5007,181.8,181.77,5.5013]
[1747980490397,123.1603,181.81,181.78,5.5011]
[1747980491099,0.04225763,181.82,181.75,0.03668876]
[1747980493802,5.5008,181.79,181.76,5.5015]
[1747980495297,5.5011,181.78,181.75,5.53858876]
[1747980495499,5.5371177,181.78,181.75,5.53858876]
[1747980495695,0.0360177,181.78,181.75,0.03668876]
[1747980495900,5.5014,181.77,181.75,0.03668876]
[1747980496101,0.0360177,181.78,181.75,0.03668876]
[1747980497100,0.0360177,181.78,181.77,5.5014]
[1747980497500,0.0360177,181.78,181.76,5.5016]
[1747980497700,0.0360177,181.78,181.75,0.03668876]
[1747980498203,0.0360177,181.78,181.76,5.5017]
[1747980498705,0.0360177,181.78,181.75,0.03668876]
[1747980499206,117.7160177,181.78,181.75,0.03668876]
[1747980499608,5.5014,181.77,181.75,0.03668876]
[1747980499909,117.7160177,181.78,181.75,0.03668876]
[1747980500107,5.5014,181.77,181.75,0.03668876]
[1747980500605,5.5017,181.76,181.75,0.03668876]
[1747980506007,123.22399848,181.78,181.75,0.03668876]
[1747980506508,5.5017,181.76,181.75,0.03668876]
[1747980511217,117.7160177,181.78,181.75,0.03668876]
[1747980513419,123.2172177,181.78,181.75,5.53848876]
[1747980513614,117.7,181.77,181.75,5.53848876]
[1747980514219,123.2015,181.77,181.75,0.03668876]
[1747980514424,117.7,181.77,181.75,0.03668876]
[1747980514720,123.2014,181.77,181.75,0.03668876]
[1747980515213,117.7,181.77,181.75,0.03668876]
[1747980515411,117.7,181.77,181.75,5.53868876]
[1747980515821,117.7,181.77,181.75,0.03668876]
[1747980517321,5.5017,181.76,181.75,0.03668876]
[1747980525030,117.7,181.77,181.75,0.03668876]
[1747980525220,117.7,181.77,181.76,5.5017]
[1747980525523,117.7,181.77,181.75,0.03668876]
[1747980525723,117.7,181.77,181.75,5.53838876]
[1747980525923,0.0360177,181.78,181.75,0.03668876]
[1747980526327,122.78254963,181.81,181.8,5.5005]
[1747980526727,117.7,181.81,181.8,5.5005]
[1747980527027,117.7,181.85,181.75,110.04798078]
[1747980527323,0.03616375,181.82,181.78,0.03686683]
[1747980527530,0.03616375,181.82,181.79,5.5007]
[1747980529228,0.03616375,181.82,181.8,5.5004]
[1747980529629,0.03616375,181.82,181.78,0.03686683]
[1747980530629,0.03616375,181.82,181.79,5.5006]
[1747980530936,0.03616375,181.82,181.78,0.03686683]
[1747980531134,0.03616375,181.82,181.79,5.5007]
[1747980532427,0.03616375,181.82,181.8,5.5005]
[1747980533123,5.53606375,181.82,181.78,0.03686683]
[1747980533323,0.03616375,181.82,181.78,0.03686683]
[1747980533528,5.5008,181.79,181.78,0.03686683]
[1747980533828,123.1608,181.79,181.78,0.03686683]
[1747980536834,5.5024,181.74,181.69,222.2]
[1747980537133,117.66,181.79,181.71,5.503]
[1747980537328,117.66,181.79,181.68,4.20343703]
[1747980537939,5.5026,181.73,181.72,0.03524878]
[1747980538237,123.1826,181.73,181.72,0.03524878]
[1747980542926,117.68,181.73,181.64,4.20343703]
[1747980543127,5.50798078,181.72,181.64,4.20343703]
[1747980543335,5.50798078,181.69,181.64,4.20343703]
[1747980543538,5.505,181.65,181.64,4.20343703]
[1747980544839,5.54263332,181.66,181.64,4.20343703]
[1747980545036,0.03783332,181.66,181.64,4.20343703]
[1747980545543,5.54263332,181.66,181.64,4.20343703]
[1747980545743,0.03783332,181.66,181.64,4.20343703]
[1747980546246,5.5052,181.65,181.63,0.04076188]
[1747980546937,0.03783332,181.66,181.63,0.04076188]
[1747980547239,5.54263332,181.66,181.63,0.04076188]
[1747980547842,0.03783332,181.66,181.63,0.04076188]
[1747980548440,5.5053,181.64,181.63,0.04076188]
[1747980562254,5.505,181.65,181.63,0.04076188]
[1747980562551,0.03783332,181.66,181.63,0.04076188]
[1747980562752,5.54263332,181.66,181.63,5.54616188]
[1747980563251,0.03783332,181.66,181.63,0.04076188]
[1747980563949,117.0,181.68,181.63,0.04076188]
[1747980564446,5.5038,181.7,181.63,0.04076188]
[1747980564757,117.0,181.71,181.63,106.5896]
[1747980565052,0.03582042,181.69,181.65,0.03691905]
[1747980565948,5.5046,181.67,181.65,0.03691905]
[1747980566658,0.03582042,181.69,181.65,0.03691905]
[1747980566659,5.5047,181.66,181.65,0.03691905]
[1747980566851,0.03582042,181.69,181.65,0.03691905]
[1747980567653,5.5047,181.66,181.65,0.03691905]
[1747980569252,0.03582042,181.69,181.65,0.03691905]
[1747980570657,5.50798078,181.68,181.65,1.905e-05]
[1747980570857,5.50798078,181.66,181.54,6.20313703]
[1747980571059,116.26,181.65,181.54,6.20313703]
[1747980571955,0.03766539,181.61,181.58,0.03848162]
[1747980572558,5.54406539,181.61,181.58,0.03848162]
[1747980573258,5.5066,181.6,181.58,0.03848162]
[1747980573968,5.5068,181.59,181.58,0.03848162]
[1747980575559,121.7666,181.6,181.58,0.03848162]
[1747980575759,116.26,181.6,181.58,0.03848162]
[1747980576156,5.5068,181.59,181.58,0.03848162]
[1747980582958,5.5068,181.59,181.58,8.162e-05]
[1747980586360,121.76798078,181.6,181.49,7.5301]
[1747980586361,5.509,181.53,181.49,7.5301]
[1747980586563,5.509,181.53,181.49,2.0203]
[1747980586865,5.509,181.53,181.5,5.5093]
[1747980587365,5.5460865,181.53,181.5,5.54856]
[1747980587663,0.0370865,181.53,181.5,0.03926]
[1747980590566,5.5093,181.51,181.5,0.03926]
[1747980590959,5.5093,181.51,181.5,6e-05]
[1747980593971,5.5111,181.45,181.44,2.0286]
[1747980594473,5.5115,181.44,181.42,1.9183]
[1747980594768,121.34,181.47,181.4,12.71348655]
[1747980594967,0.04071898,181.45,181.42,0.03677184]
[1747980595271,5.5119,181.43,181.42,0.03677184]
[1747980595868,5.5115,181.44,181.42,0.03677184]
[1747980596069,0.04071898,181.45,181.42,0.03677184]
[1747980596665,5.5114,181.44,181.42,0.03677184]
[1747980596970,0.04071898,181.45,181.42,0.03677184]
[1747980597172,5.5117,181.43,181.42,0.03677184]
[1747980597871,5.5115,181.44,181.42,0.03677184]
[1747980598073,0.04071898,181.45,181.42,0.03677184]
[1747980598371,5.5114,181.44,181.42,0.03677184]
[1747980598670,0.04071898,181.45,181.42,0.03677184]
[1747980598872,5.5114,181.44,181.42,0.03677184]
[1747980599467,5.5117,181.43,181.42,0.03677184]
[1747980599769,0.04071898,181.45,181.42,0.03677184]
[1747980600174,5.5116,181.44,181.42,0.03677184]
[1747980600479,0.04071898,181.45,181.42,0.03677184]
[1747980600670,5.5114,181.44,181.42,0.03677184]
[1747980600973,0.04071898,181.45,181.42,0.03677184]
[1747980601476,5.5117,181.43,181.42,0.03677184]
[1747980602074,5.5114,181.44,181.42,0.03677184]
[1747980602871,5.5117,181.43,181.42,0.03677184]
[1747980604477,5.5123,181.41,181.4,10.68318655]
[1747980604777,126.8923,181.41,181.4,10.68318655]
[1747980605167,5.514,181.36,181.3,1.9633]
[1747980605367,121.38,181.41,181.33,5.5145]
[1747980605564,0.03689551,181.39,181.35,0.03597244]
[1747980605776,5.5137,181.37,181.35,0.03597244]
[1747980607076,5.5137,181.37,181.35,5.55007244]
[1747980607275,0.03689551,181.39,181.35,0.03597244]
[1747980607680,0.03689551,181.39,181.36,5.5138]
[1747980607981,0.03689551,181.39,181.35,0.03597244]
[1747980608479,0.03689551,181.39,181.37,5.5133]
[1747980608978,5.54989551,181.39,181.36,5.5138]
[1747980609778,5.54989551,181.39,181.35,0.03597244]
[1747980609779,5.5137,181.37,181.35,0.03597244]
[1747980610475,5.5133,181.38,181.35,0.03597244]
[1747980611081,5.54989551,181.39,181.35,0.03597244]
[1747980611274,0.03689551,181.39,181.35,0.03597244]
[1747980611775,5.5132,181.38,181.35,0.03597244]
[1747980612177,0.03689551,181.39,181.35,0.03597244]
[1747980613681,5.5138,181.36,181.35,0.03597244]
[1747980617690,5.5133,181.38,181.35,0.03597244]
[1747980617887,0.03689551,181.39,181.35,0.03597244]
[1747980618589,5.5133,181.38,181.35,0.03597244]
[1747980618783,0.03689551,181.39,181.35,0.03597244]
[1747980622193,0.03689551,181.39,181.37,5.5133]
[1747980622682,0.03689551,181.39,181.35,0.03597244]
[1747980622878,0.03689551,181.39,181.38,5.5132]
[1747980623183,127.86,181.42,181.35,0.03597244]
[1747980623490,127.86,181.42,181.38,5.513]
[1747980623786,133.372,181.42,181.38,5.513]
[1747980623980,133.40734517,181.42,181.38,5.513]
[1747980624396,127.89534517,181.42,181.37,5.5134]
[1747980624886,127.89534517,181.42,181.35,0.03597244]
[1747980625486,127.89534517,181.42,181.35,5.55007244]
[1747980625794,127.89534517,181.42,181.35,0.03597244]
[1747980626394,5.5126,181.4,181.36,5.5138]
[1747980626887,5.5131,181.39,181.35,5.54997244]
[1747980627187,127.89534517,181.42,181.35,0.03597244]
[1747980628296,5.5131,181.39,181.35,0.03597244]
[1747980628795,5.5131,181.39,181.35,5.54987244]
[1747980629098,127.89534517,181.42,181.35,0.03597244]
[1747980629395,5.5134,181.38,181.35,0.03597244]
[1747980629598,5.55322365,181.38,181.35,0.03597244]
[1747980630698,5.55322365,181.38,181.35,5.54997244]
[1747980631296,5.5136,181.37,181.35,0.03597244]
[1747980631692,0.03982365,181.38,181.35,0.03597244]
[1747980632197,5.55312365,181.38,181.35,0.03597244]
[1747980632598,0.03982365,181.38,181.35,0.03597244]
[1747980633600,5.5138,181.36,181.35,0.03597244]
[1747980634401,5.5137,181.37,181.35,0.03597244]
[1747980635513,5.55302365,181.38,181.35,0.03597244]
[1747980635799,0.03982365,181.38,181.35,0.03597244]
[1747980635997,0.03982365,181.38,181.37,5.5135]
[1747980638001,127.86,181.42,181.35,0.03597244]
[1747980638594,127.86,181.42,181.38,5.513]
[1747980638797,127.86,181.42,181.35,0.03597244]
[1747980639002,0.0403311,181.4,181.35,0.03597244]
[1747980639701,0.0403311,181.4,181.37,5.5133]
[1747980640005,0.0403311,181.4,181.35,0.03597244]
[1747980640306,5.5531311,181.4,181.36,5.5136]
[1747980640803,0.0403311,181.4,181.35,0.03597244]
[1747980641492,5.5138,181.36,181.35,0.03597244]
[1747980647399,127.86,181.37,181.28,4.20343703]
[1747980647907,5.5155,181.31,181.28,9.71943703]
[1747980648112,127.86,181.37,181.28,4.20343703]
[1747980648302,0.04107239,181.34,181.31,0.03530427]
[1747980648502,5.55567239,181.34,181.31,0.03530427]
[1747980648902,0.04107239,181.34,181.31,0.03530427]
[1747980649609,5.55567239,181.34,181.31,5.55060427]
[1747980650011,0.04107239,181.34,181.31,0.03530427]
[1747980650609,0.04107239,181.34,181.31,5.55050427]
[1747980650810,0.04107239,181.34,181.31,0.03530427]
[1747980651705,5.515,181.32,181.31,0.03530427]
[1747980654214,137.495,181.32,181.31,0.03530427]
[1747980654711,131.98,181.32,181.24,4.20343703]
[1747980654901,131.98,181.32,181.22,5.64442528]
[1747980655103,5.5178,181.23,181.22,2.528e-05]
[1747980655306,137.4978,181.23,181.22,2.528e-05]
[1747980656310,137.4978,181.23,181.19,8.46689682]
[1747980656516,131.98,181.23,181.19,8.46689682]
[1747980657310,0.03979816,181.24,181.19,8.50692349]
[1747980657617,151.95979816,181.24,181.19,8.50692349]
[1747980657916,151.95979816,181.24,181.2,5.5187]
[1747980658109,0.03979816,181.24,181.2,5.5187]
[1747980658312,0.03979816,181.24,181.19,0.04002667]
[1747980661218,0.03979816,181.24,181.23,5.5178]
[1747980661517,0.03979816,181.24,181.19,0.04002667]
[1747980662711,0.03979816,181.24,181.2,5.5185]
[1747980663816,0.03979816,181.24,181.21,5.5183]
[1747980664015,0.03979816,181.24,181.19,0.04002667]
[1747980667020,0.03979816,181.24,181.21,5.5181]
[1747980669126,5.55729816,181.24,181.2,5.5186]
[1747980669325,0.03979816,181.24,181.19,1.95302667]
[1747980669618,0.03979816,181.24,181.19,0.04002667]
[1747980670216,5.5182,181.22,181.19,0.04002667]
[1747980670621,0.03979816,181.24,181.19,5.55902667]
[1747980670920,0.03979816,181.24,181.19,0.04002667]
[1747980673419,5.5178,181.23,181.19,0.04002667]
[1747980674421,5.55729816,181.24,181.19,5.55882667]
[1747980674611,5.55729816,181.24,181.19,0.04002667]
[1747980674919,0.03979816,181.24,181.19,0.04002667]
[1747980675319,0.03979816,181.24,181.02,164.16]
[1747980675620,5.50798078,181.21,181.07,3.7913]
[1747980675825,164.16,181.2,181.1,5.5216]
[1747980676208,164.16,181.2,181.07,9.29928078]
[1747980676409,5.5199,181.16,181.13,0.03873759]
[1747980676614,0.04054688,181.17,181.13,0.03873759]
[1747980677422,0.04054688,181.17,181.06,3.8809]
[1747980677627,164.16,181.16,181.06,3.8809]
[1747980678510,5.54864791,181.13,180.94,164.16]
[1747980678809,5.5227,181.07,181.01,5.5242]
[1747980679013,5.5227,181.07,180.98,5.8001]
[1747980679613,0.04166934,181.04,181.01,0.04088429]
[1747980680325,173.7813,181.18,181.02,5.50798078]
[1747980680516,173.7813,181.18,181.01,169.98]
[1747980680711,5.08254963,181.2,181.05,5.50798078]
[1747980681028,175.06254963,181.2,181.1,5.5215]
[1747980681427,0.03877274,181.16,181.13,0.03867406]
[1747980681728,5.5204,181.15,181.13,0.03867406]
[1747980681915,0.03877274,181.16,181.13,0.03867406]
[1747980682319,5.5205,181.14,181.13,0.03867406]
[1747980684320,5.50798078,181.14,181.01,169.98]
[1747980684729,5.50798078,181.14,181.05,5.523]
[1747980684925,5.50798078,181.14,181.01,169.98]
[1747980685119,175.50798078,181.15,181.01,169.98]
[1747980685324,175.50798078,181.15,181.06,0.04036354]
[1747980685325,0.03594175,181.1,181.06,0.04036354]
[1747980686124,5.5223,181.09,181.06,0.04036354]
[1747980686324,0.03594175,181.1,181.06,0.04036354]
[1747980686628,0.03594175,181.1,181.07,5.5226]
[1747980686825,5.55774175,181.1,181.06,0.04036354]
[1747980687016,0.03594175,181.1,181.06,0.04036354]
[1747980687333,5.5221,181.09,181.06,0.04036354]
[1747980687524,0.03594175,181.1,181.06,0.04036354]
[1747980688027,0.03594175,181.1,181.07,5.5225]
[1747980688330,0.03594175,181.1,181.06,0.04036354]
[1747980688725,0.03594175,181.1,181.09,5.522]
[1747980689033,170.04,181.16,181.07,3.8806]
[1747980689222,170.04,181.16,181.09,5.5218]
[1747980689529,170.04,181.16,181.08,1.9665]
[1747980689831,5.521,181.13,181.08,7.4886]
[1747980690032,170.04,181.16,181.09,0.04087352]
[1747980690033,0.03584148,181.12,181.09,0.04087352]
[1747980690432,5.5216,181.11,181.09,0.04087352]
[1747980690629,0.03584148,181.12,181.09,0.04087352]
[1747980691629,5.5217,181.1,181.09,0.04087352]
[1747980693132,175.54798078,181.1,180.99,9.4021]
[1747980693329,175.54798078,181.1,180.99,3.8773]
[1747980693330,170.04,181.1,180.99,3.8773]
[1747980694241,0.04038677,181.06,181.03,0.03851252]
[1747980695635,0.04038677,181.06,180.88,5.62572338]
[1747980695934,5.50798078,181.05,180.89,6.0088]
[1747980696129,176.12,181.04,180.89,6.0088]
[1747980696435,181.62798078,181.04,180.89,11.51678078]
[1747980696737,0.03518095,180.98,180.95,0.03635149]
[1747980702027,5.5257,180.97,180.95,0.03635149]
[1747980702328,0.03518095,180.98,180.95,0.03635149]
[1747980702526,6.73043592,181.11,180.95,5.54433227]
[1747980702730,6.73043592,181.11,180.99,5.5248]
[1747980703028,6.73043592,181.11,180.95,5.50798078]
[1747980703235,5.5228,181.07,181.01,5.5244]
[1747980703632,0.03948763,181.06,181.02,0.04180002]
[1747980704049,5.56248763,181.06,181.02,0.04180002]
[1747980704338,0.03948763,181.06,181.02,0.04180002]
[1747980704525,5.5235,181.05,181.02,0.04180002]
[1747980704725,0.03948763,181.06,181.02,0.04180002]
[1747980704926,5.5233,181.05,181.02,0.04180002]
[1747980706140,5.56248763,181.06,181.02,0.04180002]
[1747980706339,0.03948763,181.06,181.02,0.04180002]
[1747980707343,5.5235,181.05,181.02,0.04180002]
[1747980707535,0.03948763,181.06,181.02,0.04180002]
[1747980707938,5.5237,181.04,181.02,0.04180002]
[1747980708439,5.56268763,181.06,181.02,0.04180002]
[1747980708842,0.03948763,181.06,181.02,0.04180002]
[1747980709247,5.5235,181.05,181.02,0.04180002]
[1747980709849,0.03948763,181.06,181.02,0.04180002]
[1747980711346,5.5238,181.04,181.02,0.04180002]
[1747980711637,0.03948763,181.06,181.02,0.04180002]
[1747980711844,5.5239,181.03,181.02,0.04180002]
[1747980714948,5.5236,181.04,181.02,0.04180002]
[1747980715147,0.03948763,181.06,181.02,0.04180002]
[1747980715446,227.01948763,181.06,181.02,0.04180002]
[1747980715649,0.03948763,181.06,181.02,0.04180002]
[1747980715846,0.03948763,181.06,181.03,5.5238]
[1747980716242,0.03948763,181.06,181.02,0.04180002]
[1747980716850,0.03948763,181.06,181.02,5.56590002]
[1747980717244,0.03948763,181.06,181.02,0.04180002]
[1747980717641,704.3,181.15,181.02,0.04180002]
[1747980717842,477.32,181.15,181.03,9.0658851]
[1747980718546,0.03730979,181.11,181.08,5.5223]
[1747980718752,0.03730979,181.11,181.09,1.9023]
[1747980719145,0.03730979,181.11,181.07,0.04011374]
[1747980719546,5.5221,181.09,181.07,0.04011374]
[1747980719752,0.03730979,181.11,181.07,0.04011374]
[1747980720050,5.55880979,181.11,181.07,0.04011374]
[1747980720352,0.03730979,181.11,181.07,0.04011374]
[1747980721154,5.55870979,181.11,181.07,0.04011374]
[1747980722350,0.03730979,181.11,181.07,0.04011374]
[1747980723851,5.55890979,181.11,181.07,0.04011374]
[1747980724052,0.03730979,181.11,181.07,0.04011374]
[1747980724551,5.5221,181.09,181.07,0.04011374]
[1747980724752,0.03730979,181.11,181.07,0.04011374]
[1747980725154,5.5218,181.1,181.07,0.04011374]
[1747980725452,0.03730979,181.11,181.07,0.04011374]
[1747980725647,5.5223,181.09,181.07,0.04011374]
[1747980725954,0.03730979,181.11,181.07,0.04011374]
[1747980726450,5.5223,181.08,181.07,0.04011374]
[1747980728057,5.5628474,181.1,181.0,1.9023]
[1747980728242,5.5628474,181.1,180.99,2.0253]
[1747980728549,5.5628474,181.1,180.97,7.3852]
[1747980728946,0.03723458,181.05,181.02,0.03684048]
[1747980729148,5.5239,181.03,181.02,0.03684048]
[1747980729458,220.78,181.04,180.96,5.62572338]
[1747980729753,220.78,181.04,180.94,1.9601]
[1747980729953,5.5256,180.98,180.94,1.9601]
[1747980730356,0.04158632,180.98,180.94,7.52344914]
[1747980730744,0.04158632,180.98,180.94,1.99684914]
[1747980731252,0.04158632,180.98,180.94,0.03674914]
[1747980731659,0.04158632,180.98,180.94,5.56314914]
[1747980732153,0.04158632,180.98,180.94,0.03674914]
[1747980736672,5.5258,180.97,180.94,0.03674914]
[1747980737463,5.526,180.96,180.94,0.03674914]
[1747980737758,0.04158632,180.98,180.94,0.03674914]
[1747980738363,5.5263,180.95,180.94,0.03674914]
[1747980738560,0.04158632,180.98,180.94,0.03674914]
[1747980739052,220.84,180.97,180.94,0.03674914]
[1747980739257,226.3658,180.97,180.94,0.03674914]
[1747980739458,220.84,180.97,180.94,0.03674914]
[1747980739661,220.90158632,180.98,180.94,0.03674914]
[1747980740362,5.526,180.96,180.94,0.03674914]
[1747980740566,220.90158632,180.98,180.94,0.03674914]
[1747980741060,5.5259,180.97,180.94,0.03674914]
[1747980741260,220.90158632,180.98,180.94,0.03674914]
[1747980742666,226.42728632,180.98,180.94,0.03674914]
[1747980742865,220.90158632,180.98,180.94,0.03674914]
[1747980743468,0.04158632,180.98,180.94,0.03674914]
[1747980743676,0.04158632,180.98,180.94,5.56314914]
[1747980744069,0.04158632,180.98,180.94,0.03674914]
[1747980746878,5.5259,180.97,180.94,0.03674914]
[1747980747178,0.04158632,180.98,180.94,0.03674914]
[1747980747676,5.5263,180.96,180.94,0.03674914]
[1747980747881,0.04158632,180.98,180.94,0.03674914]